Workbook

Sheet WCST
A1: Alcohol Group Data | B1: Card Shown | C1: Correct Card | D1: Persevering Card | E1: Nth trial in block | F1: Name of the task | G1: card shape | H1: card color | I1: card color | J1: reaction time | K1: Status | L1: card clicked | M1: Error Trial | N1: Perseveration Error | O1: Non-Perseverative Error | P1: Non-Alcohol Group Data | Q1: Card Shown | R1: Correct Card | S1: Persevering Card | T1: Nth trial in block | U1: Name of the task | V1: card shape | W1: card color | X1: card color | Y1: reaction time | Z1: Status | AA1: card clicked | AB1: Error Trial | AC1: Perseveration Error | AD1: Non-Perseverative Error
A2: B1 | B2: 40 | C2: 4 | D2: 0 | E2: 1 | F2: shape | G2: star | H2: 2 | I2: yellow | J2: 1694 | K2: 2 | L2: 2 | M2: 1 | N2: 0 | O2: 1 | P2: A8 | Q2: 40 | R2: 4 | S2: 0 | T2: 1 | U2: shape | V2: star | W2: 2 | X2: yellow | Y2: 2891 | Z2: 1 | AA2: 4 | AB2: 0 | AC2: 0 | AD2: 0
B3: 35 | C3: 4 | D3: 0 | E3: 2 | F3: shape | G3: star | H3: 1 | I3: red | J3: 2720 | K3: 1 | L3: 4 | M3: 0 | N3: 0 | O3: 0 | Q3: 35 | R3: 4 | S3: 0 | T3: 2 | U3: shape | V3: star | W3: 1 | X3: red | Y3: 2863 | Z3: 2 | AA3: 1 | AB3: 1 | AC3: 0 | AD3: 1
B4: 52 | C4: 2 | D4: 0 | E4: 3 | F4: shape | G4: triangle | H4: 1 | I4: yellow | J4: 2170 | K4: 1 | L4: 2 | M4: 0 | N4: 0 | O4: 0 | Q4: 52 | R4: 2 | S4: 0 | T4: 3 | U4: shape | V4: triangle | W4: 1 | X4: yellow | Y4: 6209 | Z4: 1 | AA4: 2 | AB4: 0 | AC4: 0 | AD4: 0
B5: 34 | C5: 4 | D5: 0 | E5: 4 | F5: shape | G5: star | H5: 1 | I5: green | J5: 1689 | K5: 1 | L5: 4 | M5: 0 | N5: 0 | O5: 0 | Q5: 34 | R5: 4 | S5: 0 | T5: 4 | U5: shape | V5: star | W5: 1 | X5: green | Y5: 1088 | Z5: 1 | AA5: 4 | AB5: 0 | AC5: 0 | AD5: 0
B6: 33 | C6: 4 | D6: 0 | E6: 5 | F6: shape | G6: star | H6: 1 | I6: blue | J6: 1341 | K6: 1 | L6: 4 | M6: 0 | N6: 0 | O6: 0 | Q6: 33 | R6: 4 | S6: 0 | T6: 5 | U6: shape | V6: star | W6: 1 | X6: blue | Y6: 1276 | Z6: 1 | AA6: 4 | AB6: 0 | AC6: 0 | AD6: 0
B7: 1 | C7: 1 | D7: 0 | E7: 6 | F7: shape | G7: circle | H7: 1 | I7: blue | J7: 1492 | K7: 1 | L7: 1 | M7: 0 | N7: 0 | O7: 0 | Q7: 1 | R7: 1 | S7: 0 | T7: 6 | U7: shape | V7: circle | W7: 1 | X7: blue | Y7: 825 | Z7: 1 | AA7: 1 | AB7: 0 | AC7: 0 | AD7: 0
B8: 39 | C8: 4 | D8: 0 | E8: 7 | F8: shape | G8: star | H8: 2 | I8: red | J8: 1312 | K8: 1 | L8: 4 | M8: 0 | N8: 0 | O8: 0 | Q8: 39 | R8: 4 | S8: 0 | T8: 7 | U8: shape | V8: star | W8: 2 | X8: red | Y8: 1555 | Z8: 1 | AA8: 4 | AB8: 0 | AC8: 0 | AD8: 0
B9: 7 | C9: 1 | D9: 0 | E9: 8 | F9: shape | G9: circle | H9: 2 | I9: red | J9: 1214 | K9: 1 | L9: 1 | M9: 0 | N9: 0 | O9: 0 | Q9: 7 | R9: 1 | S9: 0 | T9: 8 | U9: shape | V9: circle | W9: 2 | X9: red | Y9: 1400 | Z9: 1 | AA9: 1 | AB9: 0 | AC9: 0 | AD9: 0
B10: 56 | C10: 2 | D10: 0 | E10: 9 | F10: shape | G10: triangle | H10: 2 | I10: yellow | J10: 1652 | K10: 1 | L10: 2 | M10: 0 | N10: 0 | O10: 0 | Q10: 56 | R10: 2 | S10: 0 | T10: 9 | U10: shape | V10: triangle | W10: 2 | X10: yellow | Y10: 1126 | Z10: 1 | AA10: 2 | AB10: 0 | AC10: 0 | AD10: 0
B11: 14 | C11: 1 | D11: 0 | E11: 10 | F11: shape | G11: circle | H11: 4 | I11: green | J11: 3207 | K11: 1 | L11: 1 | M11: 0 | N11: 0 | O11: 0 | Q11: 14 | R11: 1 | S11: 0 | T11: 10 | U11: shape | V11: circle | W11: 4 | X11: green | Y11: 1257 | Z11: 1 | AA11: 1 | AB11: 0 | AC11: 0 | AD11: 0
B12: 62 | C12: 4 | D12: 2 | E12: 1 | F12: number | G12: triangle | H12: 4 | I12: green | J12: 1681 | K12: 2 | L12: 2 | M12: 1 | N12: 1 | O12: 0 | Q12: 62 | R12: 4 | S12: 2 | T12: 1 | U12: number | V12: triangle | W12: 4 | X12: green | Y12: 1286 | Z12: 2 | AA12: 2 | AB12: 1 | AC12: 1 | AD12: 0
B13: 58 | C13: 3 | D13: 2 | E13: 2 | F13: number | G13: triangle | H13: 3 | I13: green | J13: 682 | K13: 2 | L13: 4 | M13: 1 | N13: 0 | O13: 1 | Q13: 58 | R13: 3 | S13: 2 | T13: 2 | U13: number | V13: triangle | W13: 3 | X13: green | Y13: 2530 | Z13: 1 | AA13: 3 | AB13: 0 | AC13: 0 | AD13: 0
B14: 26 | C14: 3 | D14: 3 | E14: 3 | F14: number | G14: cross | H14: 3 | I14: green | J14: 571 | K14: 1 | L14: 3 | M14: 0 | N14: 0 | O14: 0 | Q14: 26 | R14: 3 | S14: 3 | T14: 3 | U14: number | V14: cross | W14: 3 | X14: green | Y14: 1234 | Z14: 1 | AA14: 3 | AB14: 0 | AC14: 0 | AD14: 0
B15: 30 | C15: 4 | D15: 3 | E15: 4 | F15: number | G15: cross | H15: 4 | I15: green | J15: 2318 | K15: 1 | L15: 4 | M15: 0 | N15: 0 | O15: 0 | Q15: 30 | R15: 4 | S15: 3 | T15: 4 | U15: number | V15: cross | W15: 4 | X15: green | Y15: 2254 | Z15: 1 | AA15: 4 | AB15: 0 | AC15: 0 | AD15: 0
B16: 50 | C16: 1 | D16: 2 | E16: 5 | F16: number | G16: triangle | H16: 1 | I16: green | J16: 1533 | K16: 2 | L16: 2 | M16: 1 | N16: 1 | O16: 0 | Q16: 50 | R16: 1 | S16: 2 | T16: 5 | U16: number | V16: triangle | W16: 1 | X16: green | Y16: 1190 | Z16: 1 | AA16: 1 | AB16: 0 | AC16: 0 | AD16: 0
B17: 17 | C17: 1 | D17: 3 | E17: 6 | F17: number | G17: cross | H17: 1 | I17: blue | J17: 928 | K17: 1 | L17: 1 | M17: 0 | N17: 0 | O17: 0 | Q17: 17 | R17: 1 | S17: 3 | T17: 6 | U17: number | V17: cross | W17: 1 | X17: blue | Y17: 1683 | Z17: 1 | AA17: 1 | AB17: 0 | AC17: 0 | AD17: 0
B18: 11 | C18: 3 | D18: 1 | E18: 7 | F18: number | G18: circle | H18: 3 | I18: red | J18: 1361 | K18: 1 | L18: 3 | M18: 0 | N18: 0 | O18: 0 | Q18: 11 | R18: 3 | S18: 1 | T18: 7 | U18: number | V18: circle | W18: 3 | X18: red | Y18: 963 | Z18: 1 | AA18: 3 | AB18: 0 | AC18: 0 | AD18: 0
B19: 53 | C19: 2 | D19: 2 | E19: 8 | F19: number | G19: triangle | H19: 2 | I19: blue | J19: 1151 | K19: 1 | L19: 2 | M19: 0 | N19: 0 | O19: 0 | Q19: 53 | R19: 2 | S19: 2 | T19: 8 | U19: number | V19: triangle | W19: 2 | X19: blue | Y19: 5055 | Z19: 1 | AA19: 2 | AB19: 0 | AC19: 0 | AD19: 0
B20: 16 | C20: 4 | D20: 1 | E20: 9 | F20: number | G20: circle | H20: 4 | I20: yellow | J20: 1106 | K20: 1 | L20: 4 | M20: 0 | N20: 0 | O20: 0 | Q20: 16 | R20: 4 | S20: 1 | T20: 9 | U20: number | V20: circle | W20: 4 | X20: yellow | Y20: 3814 | Z20: 1 | AA20: 4 | AB20: 0 | AC20: 0 | AD20: 0
B21: 37 | C21: 2 | D21: 4 | E21: 10 | F21: number | G21: star | H21: 2 | I21: blue | J21: 1093 | K21: 1 | L21: 2 | M21: 0 | N21: 0 | O21: 0 | Q21: 37 | R21: 2 | S21: 4 | T21: 10 | U21: number | V21: star | W21: 2 | X21: blue | Y21: 861 | Z21: 1 | AA21: 2 | AB21: 0 | AC21: 0 | AD21: 0
B22: 46 | C22: 2 | D22: 4 | E22: 1 | F22: color | G22: star | H22: 4 | I22: green | J22: 1221 | K22: 2 | L22: 4 | M22: 1 | N22: 1 | O22: 0 | Q22: 46 | R22: 2 | S22: 4 | T22: 1 | U22: color | V22: star | W22: 4 | X22: green | Y22: 1056 | Z22: 2 | AA22: 4 | AB22: 1 | AC22: 1 | AD22: 0
B23: 45 | C23: 3 | D23: 4 | E23: 2 | F23: color | G23: star | H23: 4 | I23: blue | J23: 2977 | K23: 2 | L23: 4 | M23: 1 | N23: 1 | O23: 0 | Q23: 45 | R23: 3 | S23: 4 | T23: 2 | U23: color | V23: star | W23: 4 | X23: blue | Y23: 289 | Z23: 2 | AA23: 2 | AB23: 1 | AC23: 0 | AD23: 1
B24: 27 | C24: 1 | D24: 3 | E24: 3 | F24: color | G24: cross | H24: 3 | I24: red | J24: 1580 | K24: 1 | L24: 1 | M24: 0 | N24: 0 | O24: 0 | Q24: 27 | R24: 1 | S24: 3 | T24: 3 | U24: color | V24: cross | W24: 3 | X24: red | Y24: 592 | Z24: 1 | AA24: 1 | AB24: 0 | AC24: 0 | AD24: 0
B25: 15 | C25: 1 | D25: 4 | E25: 4 | F25: color | G25: circle | H25: 4 | I25: red | J25: 985 | K25: 1 | L25: 1 | M25: 0 | N25: 0 | O25: 0 | Q25: 15 | R25: 1 | S25: 4 | T25: 4 | U25: color | V25: circle | W25: 4 | X25: red | Y25: 522 | Z25: 1 | AA25: 1 | AB25: 0 | AC25: 0 | AD25: 0
B26: 19 | C26: 1 | D26: 1 | E26: 5 | F26: color | G26: cross | H26: 1 | I26: red | J26: 921 | K26: 1 | L26: 1 | M26: 0 | N26: 0 | O26: 0 | Q26: 19 | R26: 1 | S26: 1 | T26: 5 | U26: color | V26: cross | W26: 1 | X26: red | Y26: 1126 | Z26: 1 | AA26: 1 | AB26: 0 | AC26: 0 | AD26: 0
B27: 57 | C27: 3 | D27: 3 | E27: 6 | F27: color | G27: triangle | H27: 3 | I27: blue | J27: 2430 | K27: 1 | L27: 3 | M27: 0 | N27: 0 | O27: 0 | Q27: 57 | R27: 3 | S27: 3 | T27: 6 | U27: color | V27: triangle | W27: 3 | X27: blue | Y27: 671 | Z27: 1 | AA27: 3 | AB27: 0 | AC27: 0 | AD27: 0
B28: 22 | C28: 2 | D28: 2 | E28: 7 | F28: color | G28: cross | H28: 2 | I28: green | J28: 1075 | K28: 1 | L28: 2 | M28: 0 | N28: 0 | O28: 0 | Q28: 22 | R28: 2 | S28: 2 | T28: 7 | U28: color | V28: cross | W28: 2 | X28: green | Y28: 1159 | Z28: 1 | AA28: 2 | AB28: 0 | AC28: 0 | AD28: 0
B29: 49 | C29: 3 | D29: 1 | E29: 8 | F29: color | G29: triangle | H29: 1 | I29: blue | J29: 1689 | K29: 1 | L29: 3 | M29: 0 | N29: 0 | O29: 0 | Q29: 49 | R29: 3 | S29: 1 | T29: 8 | U29: color | V29: triangle | W29: 1 | X29: blue | Y29: 869 | Z29: 1 | AA29: 3 | AB29: 0 | AC29: 0 | AD29: 0
B30: 51 | C30: 1 | D30: 1 | E30: 9 | F30: color | G30: triangle | H30: 1 | I30: red | J30: 1213 | K30: 1 | L30: 1 | M30: 0 | N30: 0 | O30: 0 | Q30: 51 | R30: 1 | S30: 1 | T30: 9 | U30: color | V30: triangle | W30: 1 | X30: red | Y30: 843 | Z30: 1 | AA30: 1 | AB30: 0 | AC30: 0 | AD30: 0
B31: 13 | C31: 3 | D31: 4 | E31: 10 | F31: color | G31: circle | H31: 4 | I31: blue | J31: 1170 | K31: 1 | L31: 3 | M31: 0 | N31: 0 | O31: 0 | Q31: 13 | R31: 3 | S31: 4 | T31: 10 | U31: color | V31: circle | W31: 4 | X31: blue | Y31: 1254 | Z31: 1 | AA31: 3 | AB31: 0 | AC31: 0 | AD31: 0
B32: 32 | C32: 3 | D32: 4 | E32: 1 | F32: shape | G32: cross | H32: 4 | I32: yellow | J32: 949 | K32: 2 | L32: 4 | M32: 1 | N32: 1 | O32: 0 | Q32: 32 | R32: 3 | S32: 4 | T32: 1 | U32: shape | V32: cross | W32: 4 | X32: yellow | Y32: 1604 | Z32: 2 | AA32: 4 | AB32: 1 | AC32: 1 | AD32: 0
B33: 28 | C33: 3 | D33: 4 | E33: 2 | F33: shape | G33: cross | H33: 3 | I33: yellow | J33: 3115 | K33: 1 | L33: 3 | M33: 0 | N33: 0 | O33: 0 | Q33: 28 | R33: 3 | S33: 4 | T33: 2 | U33: shape | V33: cross | W33: 3 | X33: yellow | Y33: 904 | Z33: 1 | AA33: 3 | AB33: 0 | AC33: 0 | AD33: 0
B34: 23 | C34: 3 | D34: 1 | E34: 3 | F34: shape | G34: cross | H34: 2 | I34: red | J34: 4013 | K34: 2 | L34: 2 | M34: 1 | N34: 0 | O34: 1 | Q34: 23 | R34: 3 | S34: 1 | T34: 3 | U34: shape | V34: cross | W34: 2 | X34: red | Y34: 1440 | Z34: 1 | AA34: 3 | AB34: 0 | AC34: 0 | AD34: 0
B35: 9 | C35: 1 | D35: 3 | E35: 4 | F35: shape | G35: circle | H35: 3 | I35: blue | J35: 1183 | K35: 2 | L35: 3 | M35: 1 | N35: 1 | O35: 0 | Q35: 9 | R35: 1 | S35: 3 | T35: 4 | U35: shape | V35: circle | W35: 3 | X35: blue | Y35: 1801 | Z35: 1 | AA35: 1 | AB35: 0 | AC35: 0 | AD35: 0
B36: 64 | C36: 2 | D36: 4 | E36: 5 | F36: shape | G36: triangle | H36: 4 | I36: yellow | J36: 2701 | K36: 1 | L36: 2 | M36: 0 | N36: 0 | O36: 0 | Q36: 64 | R36: 2 | S36: 4 | T36: 5 | U36: shape | V36: triangle | W36: 4 | X36: yellow | Y36: 1638 | Z36: 1 | AA36: 2 | AB36: 0 | AC36: 0 | AD36: 0
B37: 36 | C37: 4 | D37: 4 | E37: 6 | F37: shape | G37: star | H37: 1 | I37: yellow | J37: 1602 | K37: 1 | L37: 4 | M37: 0 | N37: 0 | O37: 0 | Q37: 36 | R37: 4 | S37: 4 | T37: 6 | U37: shape | V37: star | W37: 1 | X37: yellow | Y37: 3843 | Z37: 1 | AA37: 4 | AB37: 0 | AC37: 0 | AD37: 0
B38: 63 | C38: 2 | D38: 1 | E38: 7 | F38: shape | G38: triangle | H38: 4 | I38: red | J38: 1950 | K38: 1 | L38: 2 | M38: 0 | N38: 0 | O38: 0 | Q38: 63 | R38: 2 | S38: 1 | T38: 7 | U38: shape | V38: triangle | W38: 4 | X38: red | Y38: 1495 | Z38: 1 | AA38: 2 | AB38: 0 | AC38: 0 | AD38: 0
B39: 59 | C39: 2 | D39: 1 | E39: 8 | F39: shape | G39: triangle | H39: 3 | I39: red | J39: 1164 | K39: 1 | L39: 2 | M39: 0 | N39: 0 | O39: 0 | Q39: 59 | R39: 2 | S39: 1 | T39: 8 | U39: shape | V39: triangle | W39: 3 | X39: red | Y39: 1825 | Z39: 1 | AA39: 2 | AB39: 0 | AC39: 0 | AD39: 0
B40: 20 | C40: 3 | D40: 4 | E40: 9 | F40: shape | G40: cross | H40: 1 | I40: yellow | J40: 1564 | K40: 1 | L40: 3 | M40: 0 | N40: 0 | O40: 0 | Q40: 20 | R40: 3 | S40: 4 | T40: 9 | U40: shape | V40: cross | W40: 1 | X40: yellow | Y40: 2158 | Z40: 1 | AA40: 3 | AB40: 0 | AC40: 0 | AD40: 0
B41: 2 | C41: 1 | D41: 2 | E41: 10 | F41: shape | G41: circle | H41: 1 | I41: green | J41: 939 | K41: 1 | L41: 1 | M41: 0 | N41: 0 | O41: 0 | Q41: 2 | R41: 1 | S41: 2 | T41: 10 | U41: shape | V41: circle | W41: 1 | X41: green | Y41: 1488 | Z41: 1 | AA41: 1 | AB41: 0 | AC41: 0 | AD41: 0
B42: 24 | C42: 2 | D42: 3 | E42: 1 | F42: number | G42: cross | H42: 2 | I42: yellow | J42: 2111 | K42: 2 | L42: 3 | M42: 1 | N42: 1 | O42: 0 | Q42: 24 | R42: 2 | S42: 3 | T42: 1 | U42: number | V42: cross | W42: 2 | X42: yellow | Y42: 1449 | Z42: 2 | AA42: 3 | AB42: 1 | AC42: 1 | AD42: 0
B43: 5 | C43: 2 | D43: 1 | E43: 2 | F43: number | G43: circle | H43: 2 | I43: blue | J43: 1395 | K43: 2 | L43: 3 | M43: 1 | N43: 0 | O43: 1 | Q43: 5 | R43: 2 | S43: 1 | T43: 2 | U43: number | V43: circle | W43: 2 | X43: blue | Y43: 1683 | Z43: 1 | AA43: 2 | AB43: 0 | AC43: 0 | AD43: 0
B44: 42 | C44: 3 | D44: 4 | E44: 3 | F44: number | G44: star | H44: 3 | I44: green | J44: 5448 | K44: 1 | L44: 3 | M44: 0 | N44: 0 | O44: 0 | Q44: 42 | R44: 3 | S44: 4 | T44: 3 | U44: number | V44: star | W44: 3 | X44: green | Y44: 1319 | Z44: 1 | AA44: 3 | AB44: 0 | AC44: 0 | AD44: 0
B45: 10 | C45: 3 | D45: 1 | E45: 4 | F45: number | G45: circle | H45: 3 | I45: green | J45: 847 | K45: 1 | L45: 3 | M45: 0 | N45: 0 | O45: 0 | Q45: 10 | R45: 3 | S45: 1 | T45: 4 | U45: number | V45: circle | W45: 3 | X45: green | Y45: 1158 | Z45: 1 | AA45: 3 | AB45: 0 | AC45: 0 | AD45: 0
B46: 29 | C46: 4 | D46: 3 | E46: 5 | F46: number | G46: cross | H46: 4 | I46: blue | J46: 1373 | K46: 1 | L46: 4 | M46: 0 | N46: 0 | O46: 0 | Q46: 29 | R46: 4 | S46: 3 | T46: 5 | U46: number | V46: cross | W46: 4 | X46: blue | Y46: 2374 | Z46: 1 | AA46: 4 | AB46: 0 | AC46: 0 | AD46: 0
B47: 47 | C47: 4 | D47: 4 | E47: 6 | F47: number | G47: star | H47: 4 | I47: red | J47: 927 | K47: 1 | L47: 4 | M47: 0 | N47: 0 | O47: 0 | Q47: 47 | R47: 4 | S47: 4 | T47: 6 | U47: number | V47: star | W47: 4 | X47: red | Y47: 2296 | Z47: 1 | AA47: 4 | AB47: 0 | AC47: 0 | AD47: 0
B48: 31 | C48: 4 | D48: 3 | E48: 7 | F48: number | G48: cross | H48: 4 | I48: red | J48: 922 | K48: 1 | L48: 4 | M48: 0 | N48: 0 | O48: 0 | Q48: 31 | R48: 4 | S48: 3 | T48: 7 | U48: number | V48: cross | W48: 4 | X48: red | Y48: 958 | Z48: 1 | AA48: 4 | AB48: 0 | AC48: 0 | AD48: 0
B49: 38 | C49: 2 | D49: 4 | E49: 8 | F49: number | G49: star | H49: 2 | I49: green | J49: 1129 | K49: 1 | L49: 2 | M49: 0 | N49: 0 | O49: 0 | Q49: 38 | R49: 2 | S49: 4 | T49: 8 | U49: number | V49: star | W49: 2 | X49: green | Y49: 1489 | Z49: 1 | AA49: 2 | AB49: 0 | AC49: 0 | AD49: 0
B50: 21 | C50: 2 | D50: 3 | E50: 9 | F50: number | G50: cross | H50: 2 | I50: blue | J50: 1136 | K50: 1 | L50: 2 | M50: 0 | N50: 0 | O50: 0 | Q50: 21 | R50: 2 | S50: 3 | T50: 9 | U50: number | V50: cross | W50: 2 | X50: blue | Y50: 687 | Z50: 2 | AA50: 3 | AB50: 1 | AC50: 1 | AD50: 0
B51: 6 | C51: 2 | D51: 1 | E51: 10 | F51: number | G51: circle | H51: 2 | I51: green | J51: 861 | K51: 1 | L51: 2 | M51: 0 | N51: 0 | O51: 0 | Q51: 6 | R51: 2 | S51: 1 | T51: 10 | U51: number | V51: circle | W51: 2 | X51: green | Y51: 711 | Z51: 1 | AA51: 2 | AB51: 0 | AC51: 0 | AD51: 0
B52: 12 | C52: 4 | D52: 3 | E52: 1 | F52: color | G52: circle | H52: 3 | I52: yellow | J52: 974 | K52: 2 | L52: 3 | M52: 1 | N52: 1 | O52: 0 | Q52: 12 | R52: 4 | S52: 3 | T52: 1 | U52: color | V52: circle | W52: 3 | X52: yellow | Y52: 1590 | Z52: 2 | AA52: 3 | AB52: 1 | AC52: 1 | AD52: 0
B53: 61 | C53: 3 | D53: 4 | E53: 2 | F53: color | G53: triangle | H53: 4 | I53: blue | J53: 1348 | K53: 2 | L53: 2 | M53: 1 | N53: 0 | O53: 1 | Q53: 61 | R53: 3 | S53: 4 | T53: 2 | U53: color | V53: triangle | W53: 4 | X53: blue | Y53: 1038 | Z53: 1 | AA53: 3 | AB53: 0 | AC53: 0 | AD53: 0
B54: 55 | C54: 1 | D54: 2 | E54: 3 | F54: color | G54: triangle | H54: 2 | I54: red | J54: 1003 | K54: 1 | L54: 1 | M54: 0 | N54: 0 | O54: 0 | Q54: 55 | R54: 1 | S54: 2 | T54: 3 | U54: color | V54: triangle | W54: 2 | X54: red | Y54: 1495 | Z54: 1 | AA54: 1 | AB54: 0 | AC54: 0 | AD54: 0
B55: 41 | C55: 3 | D55: 3 | E55: 4 | F55: color | G55: star | H55: 3 | I55: blue | J55: 956 | K55: 1 | L55: 3 | M55: 0 | N55: 0 | O55: 0 | Q55: 41 | R55: 3 | S55: 3 | T55: 4 | U55: color | V55: star | W55: 3 | X55: blue | Y55: 1193 | Z55: 1 | AA55: 3 | AB55: 0 | AC55: 0 | AD55: 0
B56: 44 | C56: 4 | D56: 3 | E56: 5 | F56: color | G56: star | H56: 3 | I56: yellow | J56: 1360 | K56: 1 | L56: 4 | M56: 0 | N56: 0 | O56: 0 | Q56: 44 | R56: 4 | S56: 3 | T56: 5 | U56: color | V56: star | W56: 3 | X56: yellow | Y56: 1102 | Z56: 2 | AA56: 3 | AB56: 1 | AC56: 1 | AD56: 0
B57: 4 | C57: 4 | D57: 1 | E57: 6 | F57: color | G57: circle | H57: 1 | I57: yellow | J57: 830 | K57: 2 | L57: 1 | M57: 1 | N57: 1 | O57: 0 | Q57: 4 | R57: 4 | S57: 1 | T57: 6 | U57: color | V57: circle | W57: 1 | X57: yellow | Y57: 942 | Z57: 1 | AA57: 4 | AB57: 0 | AC57: 0 | AD57: 0
B58: 60 | C58: 4 | D58: 3 | E58: 7 | F58: color | G58: triangle | H58: 3 | I58: yellow | J58: 1012 | K58: 1 | L58: 4 | M58: 0 | N58: 0 | O58: 0 | Q58: 60 | R58: 4 | S58: 3 | T58: 7 | U58: color | V58: triangle | W58: 3 | X58: yellow | Y58: 756 | Z58: 1 | AA58: 4 | AB58: 0 | AC58: 0 | AD58: 0
B59: 43 | C59: 1 | D59: 3 | E59: 8 | F59: color | G59: star | H59: 3 | I59: red | J59: 1961 | K59: 1 | L59: 1 | M59: 0 | N59: 0 | O59: 0 | Q59: 43 | R59: 1 | S59: 3 | T59: 8 | U59: color | V59: star | W59: 3 | X59: red | Y59: 732 | Z59: 1 | AA59: 1 | AB59: 0 | AC59: 0 | AD59: 0
B60: 8 | C60: 4 | D60: 2 | E60: 9 | F60: color | G60: circle | H60: 2 | I60: yellow | J60: 1352 | K60: 1 | L60: 4 | M60: 0 | N60: 0 | O60: 0 | Q60: 8 | R60: 4 | S60: 2 | T60: 9 | U60: color | V60: circle | W60: 2 | X60: yellow | Y60: 1610 | Z60: 1 | AA60: 4 | AB60: 0 | AC60: 0 | AD60: 0
B61: 18 | C61: 2 | D61: 1 | E61: 10 | F61: color | G61: cross | H61: 1 | I61: green | J61: 1067 | K61: 1 | L61: 2 | M61: 0 | N61: 0 | O61: 0 | Q61: 18 | R61: 2 | S61: 1 | T61: 10 | U61: color | V61: cross | W61: 1 | X61: green | Y61: 1320 | Z61: 1 | AA61: 2 | AB61: 0 | AC61: 0 | AD61: 0
B62: 40 | C62: 4 | D62: 0 | E62: 1 | F62: shape | G62: star | H62: 2 | I62: yellow | J62: 1470 | K62: 1 | L62: 4 | M62: 0 | N62: 0 | O62: 0 | Q62: 40 | R62: 4 | S62: 0 | T62: 1 | U62: shape | V62: star | W62: 2 | X62: yellow | Y62: 1547 | Z62: 1 | AA62: 4 | AB62: 0 | AC62: 0 | AD62: 0
B63: 35 | C63: 4 | D63: 0 | E63: 2 | F63: shape | G63: star | H63: 1 | I63: red | J63: 765 | K63: 2 | L63: 1 | M63: 1 | N63: 0 | O63: 1 | Q63: 35 | R63: 4 | S63: 0 | T63: 2 | U63: shape | V63: star | W63: 1 | X63: red | Y63: 1340 | Z63: 1 | AA63: 4 | AB63: 0 | AC63: 0 | AD63: 0
B64: 52 | C64: 2 | D64: 0 | E64: 3 | F64: shape | G64: triangle | H64: 1 | I64: yellow | J64: 1060 | K64: 1 | L64: 2 | M64: 0 | N64: 0 | O64: 0 | Q64: 52 | R64: 2 | S64: 0 | T64: 3 | U64: shape | V64: triangle | W64: 1 | X64: yellow | Y64: 795 | Z64: 1 | AA64: 2 | AB64: 0 | AC64: 0 | AD64: 0
B65: 34 | C65: 4 | D65: 0 | E65: 4 | F65: shape | G65: star | H65: 1 | I65: green | J65: 1336 | K65: 1 | L65: 4 | M65: 0 | N65: 0 | O65: 0 | Q65: 34 | R65: 4 | S65: 0 | T65: 4 | U65: shape | V65: star | W65: 1 | X65: green | Y65: 1447 | Z65: 1 | AA65: 4 | AB65: 0 | AC65: 0 | AD65: 0
B66: 33 | C66: 4 | D66: 0 | E66: 5 | F66: shape | G66: star | H66: 1 | I66: blue | J66: 1290 | K66: 1 | L66: 4 | M66: 0 | N66: 0 | O66: 0 | Q66: 33 | R66: 4 | S66: 0 | T66: 5 | U66: shape | V66: star | W66: 1 | X66: blue | Y66: 1300 | Z66: 1 | AA66: 4 | AB66: 0 | AC66: 0 | AD66: 0
B67: 1 | C67: 1 | D67: 0 | E67: 6 | F67: shape | G67: circle | H67: 1 | I67: blue | J67: 903 | K67: 1 | L67: 1 | M67: 0 | N67: 0 | O67: 0 | Q67: 1 | R67: 1 | S67: 0 | T67: 6 | U67: shape | V67: circle | W67: 1 | X67: blue | Y67: 1054 | Z67: 1 | AA67: 1 | AB67: 0 | AC67: 0 | AD67: 0
B68: 39 | C68: 4 | D68: 0 | E68: 7 | F68: shape | G68: star | H68: 2 | I68: red | J68: 2322 | K68: 1 | L68: 4 | M68: 0 | N68: 0 | O68: 0 | Q68: 39 | R68: 4 | S68: 0 | T68: 7 | U68: shape | V68: star | W68: 2 | X68: red | Y68: 1045 | Z68: 2 | AA68: 2 | AB68: 1 | AC68: 0 | AD68: 1
B69: 7 | C69: 1 | D69: 0 | E69: 8 | F69: shape | G69: circle | H69: 2 | I69: red | J69: 888 | K69: 1 | L69: 1 | M69: 0 | N69: 0 | O69: 0 | Q69: 7 | R69: 1 | S69: 0 | T69: 8 | U69: shape | V69: circle | W69: 2 | X69: red | Y69: 991 | Z69: 1 | AA69: 1 | AB69: 0 | AC69: 0 | AD69: 0
B70: 56 | C70: 2 | D70: 0 | E70: 9 | F70: shape | G70: triangle | H70: 2 | I70: yellow | J70: 844 | K70: 1 | L70: 2 | M70: 0 | N70: 0 | O70: 0 | Q70: 56 | R70: 2 | S70: 0 | T70: 9 | U70: shape | V70: triangle | W70: 2 | X70: yellow | Y70: 1747 | Z70: 1 | AA70: 2 | AB70: 0 | AC70: 0 | AD70: 0
B71: 14 | C71: 1 | D71: 0 | E71: 10 | F71: shape | G71: circle | H71: 4 | I71: green | J71: 908 | K71: 2 | L71: 4 | M71: 1 | N71: 0 | O71: 1 | Q71: 14 | R71: 1 | S71: 0 | T71: 10 | U71: shape | V71: circle | W71: 4 | X71: green | Y71: 918 | Z71: 2 | AA71: 4 | AB71: 1 | AC71: 0 | AD71: 1
B72: 62 | C72: 4 | D72: 2 | E72: 1 | F72: number | G72: triangle | H72: 4 | I72: green | J72: 3443 | K72: 2 | L72: 2 | M72: 1 | N72: 1 | O72: 0 | Q72: 62 | R72: 4 | S72: 2 | T72: 1 | U72: number | V72: triangle | W72: 4 | X72: green | Y72: 2528 | Z72: 2 | AA72: 2 | AB72: 1 | AC72: 1 | AD72: 0
B73: 58 | C73: 3 | D73: 2 | E73: 2 | F73: number | G73: triangle | H73: 3 | I73: green | J73: 2554 | K73: 2 | L73: 2 | M73: 1 | N73: 1 | O73: 0 | Q73: 58 | R73: 3 | S73: 2 | T73: 2 | U73: number | V73: triangle | W73: 3 | X73: green | Y73: 929 | Z73: 1 | AA73: 3 | AB73: 0 | AC73: 0 | AD73: 0
B74: 26 | C74: 3 | D74: 3 | E74: 3 | F74: number | G74: cross | H74: 3 | I74: green | J74: 1200 | K74: 1 | L74: 3 | M74: 0 | N74: 0 | O74: 0 | Q74: 26 | R74: 3 | S74: 3 | T74: 3 | U74: number | V74: cross | W74: 3 | X74: green | Y74: 781 | Z74: 1 | AA74: 3 | AB74: 0 | AC74: 0 | AD74: 0
B75: 30 | C75: 4 | D75: 3 | E75: 4 | F75: number | G75: cross | H75: 4 | I75: green | J75: 1357 | K75: 2 | L75: 3 | M75: 1 | N75: 1 | O75: 0 | Q75: 30 | R75: 4 | S75: 3 | T75: 4 | U75: number | V75: cross | W75: 4 | X75: green | Y75: 1327 | Z75: 1 | AA75: 4 | AB75: 0 | AC75: 0 | AD75: 0
B76: 50 | C76: 1 | D76: 2 | E76: 5 | F76: number | G76: triangle | H76: 1 | I76: green | J76: 1103 | K76: 2 | L76: 2 | M76: 1 | N76: 1 | O76: 0 | Q76: 50 | R76: 1 | S76: 2 | T76: 5 | U76: number | V76: triangle | W76: 1 | X76: green | Y76: 1078 | Z76: 1 | AA76: 1 | AB76: 0 | AC76: 0 | AD76: 0
B77: 17 | C77: 1 | D77: 3 | E77: 6 | F77: number | G77: cross | H77: 1 | I77: blue | J77: 1285 | K77: 1 | L77: 1 | M77: 0 | N77: 0 | O77: 0 | Q77: 17 | R77: 1 | S77: 3 | T77: 6 | U77: number | V77: cross | W77: 1 | X77: blue | Y77: 2217 | Z77: 1 | AA77: 1 | AB77: 0 | AC77: 0 | AD77: 0
B78: 11 | C78: 3 | D78: 1 | E78: 7 | F78: number | G78: circle | H78: 3 | I78: red | J78: 1366 | K78: 1 | L78: 3 | M78: 0 | N78: 0 | O78: 0 | Q78: 11 | R78: 3 | S78: 1 | T78: 7 | U78: number | V78: circle | W78: 3 | X78: red | Y78: 1002 | Z78: 1 | AA78: 3 | AB78: 0 | AC78: 0 | AD78: 0
B79: 53 | C79: 2 | D79: 2 | E79: 8 | F79: number | G79: triangle | H79: 2 | I79: blue | J79: 1195 | K79: 1 | L79: 2 | M79: 0 | N79: 0 | O79: 0 | Q79: 53 | R79: 2 | S79: 2 | T79: 8 | U79: number | V79: triangle | W79: 2 | X79: blue | Y79: 1092 | Z79: 1 | AA79: 2 | AB79: 0 | AC79: 0 | AD79: 0
B80: 16 | C80: 4 | D80: 1 | E80: 9 | F80: number | G80: circle | H80: 4 | I80: yellow | J80: 882 | K80: 1 | L80: 4 | M80: 0 | N80: 0 | O80: 0 | Q80: 16 | R80: 4 | S80: 1 | T80: 9 | U80: number | V80: circle | W80: 4 | X80: yellow | Y80: 1200 | Z80: 2 | AA80: 1 | AB80: 1 | AC80: 1 | AD80: 0
B81: 37 | C81: 2 | D81: 4 | E81: 10 | F81: number | G81: star | H81: 2 | I81: blue | J81: 932 | K81: 1 | L81: 2 | M81: 0 | N81: 0 | O81: 0 | Q81: 37 | R81: 2 | S81: 4 | T81: 10 | U81: number | V81: star | W81: 2 | X81: blue | Y81: 1510 | Z81: 1 | AA81: 2 | AB81: 0 | AC81: 0 | AD81: 0
B82: 46 | C82: 2 | D82: 4 | E82: 1 | F82: color | G82: star | H82: 4 | I82: green | J82: 943 | K82: 2 | L82: 4 | M82: 1 | N82: 1 | O82: 0 | Q82: 46 | R82: 2 | S82: 4 | T82: 1 | U82: color | V82: star | W82: 4 | X82: green | Y82: 1044 | Z82: 2 | AA82: 4 | AB82: 1 | AC82: 1 | AD82: 0
B83: 45 | C83: 3 | D83: 4 | E83: 2 | F83: color | G83: star | H83: 4 | I83: blue | J83: 943 | K83: 2 | L83: 4 | M83: 1 | N83: 1 | O83: 0 | Q83: 45 | R83: 3 | S83: 4 | T83: 2 | U83: color | V83: star | W83: 4 | X83: blue | Y83: 663 | Z83: 1 | AA83: 3 | AB83: 0 | AC83: 0 | AD83: 0
B84: 27 | C84: 1 | D84: 3 | E84: 3 | F84: color | G84: cross | H84: 3 | I84: red | J84: 2111 | K84: 2 | L84: 3 | M84: 1 | N84: 1 | O84: 0 | Q84: 27 | R84: 1 | S84: 3 | T84: 3 | U84: color | V84: cross | W84: 3 | X84: red | Y84: 553 | Z84: 1 | AA84: 1 | AB84: 0 | AC84: 0 | AD84: 0
B85: 15 | C85: 1 | D85: 4 | E85: 4 | F85: color | G85: circle | H85: 4 | I85: red | J85: 2448 | K85: 1 | L85: 1 | M85: 0 | N85: 0 | O85: 0 | Q85: 15 | R85: 1 | S85: 4 | T85: 4 | U85: color | V85: circle | W85: 4 | X85: red | Y85: 977 | Z85: 2 | AA85: 4 | AB85: 1 | AC85: 1 | AD85: 0
B86: 19 | C86: 1 | D86: 1 | E86: 5 | F86: color | G86: cross | H86: 1 | I86: red | J86: 1521 | K86: 2 | L86: 3 | M86: 1 | N86: 0 | O86: 1 | Q86: 19 | R86: 1 | S86: 1 | T86: 5 | U86: color | V86: cross | W86: 1 | X86: red | Y86: 665 | Z86: 1 | AA86: 1 | AB86: 0 | AC86: 0 | AD86: 0
B87: 57 | C87: 3 | D87: 3 | E87: 6 | F87: color | G87: triangle | H87: 3 | I87: blue | J87: 917 | K87: 1 | L87: 3 | M87: 0 | N87: 0 | O87: 0 | Q87: 57 | R87: 3 | S87: 3 | T87: 6 | U87: color | V87: triangle | W87: 3 | X87: blue | Y87: 985 | Z87: 1 | AA87: 3 | AB87: 0 | AC87: 0 | AD87: 0
B88: 22 | C88: 2 | D88: 2 | E88: 7 | F88: color | G88: cross | H88: 2 | I88: green | J88: 990 | K88: 1 | L88: 2 | M88: 0 | N88: 0 | O88: 0 | Q88: 22 | R88: 2 | S88: 2 | T88: 7 | U88: color | V88: cross | W88: 2 | X88: green | Y88: 762 | Z88: 1 | AA88: 2 | AB88: 0 | AC88: 0 | AD88: 0
B89: 49 | C89: 3 | D89: 1 | E89: 8 | F89: color | G89: triangle | H89: 1 | I89: blue | J89: 738 | K89: 2 | L89: 1 | M89: 1 | N89: 1 | O89: 0 | Q89: 49 | R89: 3 | S89: 1 | T89: 8 | U89: color | V89: triangle | W89: 1 | X89: blue | Y89: 744 | Z89: 1 | AA89: 3 | AB89: 0 | AC89: 0 | AD89: 0
B90: 51 | C90: 1 | D90: 1 | E90: 9 | F90: color | G90: triangle | H90: 1 | I90: red | J90: 1074 | K90: 1 | L90: 1 | M90: 0 | N90: 0 | O90: 0 | Q90: 51 | R90: 1 | S90: 1 | T90: 9 | U90: color | V90: triangle | W90: 1 | X90: red | Y90: 1580 | Z90: 1 | AA90: 1 | AB90: 0 | AC90: 0 | AD90: 0
B91: 13 | C91: 3 | D91: 4 | E91: 10 | F91: color | G91: circle | H91: 4 | I91: blue | J91: 1219 | K91: 2 | L91: 4 | M91: 1 | N91: 1 | O91: 0 | Q91: 13 | R91: 3 | S91: 4 | T91: 10 | U91: color | V91: circle | W91: 4 | X91: blue | Y91: 944 | Z91: 2 | AA91: 4 | AB91: 1 | AC91: 1 | AD91: 0
B92: 32 | C92: 3 | D92: 4 | E92: 1 | F92: shape | G92: cross | H92: 4 | I92: yellow | J92: 828 | K92: 2 | L92: 4 | M92: 1 | N92: 1 | O92: 0 | Q92: 32 | R92: 3 | S92: 4 | T92: 1 | U92: shape | V92: cross | W92: 4 | X92: yellow | Y92: 704 | Z92: 2 | AA92: 4 | AB92: 1 | AC92: 1 | AD92: 0
B93: 28 | C93: 3 | D93: 4 | E93: 2 | F93: shape | G93: cross | H93: 3 | I93: yellow | J93: 2709 | K93: 1 | L93: 3 | M93: 0 | N93: 0 | O93: 0 | Q93: 28 | R93: 3 | S93: 4 | T93: 2 | U93: shape | V93: cross | W93: 3 | X93: yellow | Y93: 739 | Z93: 1 | AA93: 3 | AB93: 0 | AC93: 0 | AD93: 0
B94: 23 | C94: 3 | D94: 1 | E94: 3 | F94: shape | G94: cross | H94: 2 | I94: red | J94: 1091 | K94: 1 | L94: 3 | M94: 0 | N94: 0 | O94: 0 | Q94: 23 | R94: 3 | S94: 1 | T94: 3 | U94: shape | V94: cross | W94: 2 | X94: red | Y94: 822 | Z94: 1 | AA94: 3 | AB94: 0 | AC94: 0 | AD94: 0
B95: 9 | C95: 1 | D95: 3 | E95: 4 | F95: shape | G95: circle | H95: 3 | I95: blue | J95: 1594 | K95: 2 | L95: 3 | M95: 1 | N95: 1 | O95: 0 | Q95: 9 | R95: 1 | S95: 3 | T95: 4 | U95: shape | V95: circle | W95: 3 | X95: blue | Y95: 4282 | Z95: 1 | AA95: 1 | AB95: 0 | AC95: 0 | AD95: 0
B96: 64 | C96: 2 | D96: 4 | E96: 5 | F96: shape | G96: triangle | H96: 4 | I96: yellow | J96: 2048 | K96: 1 | L96: 2 | M96: 0 | N96: 0 | O96: 0 | Q96: 64 | R96: 2 | S96: 4 | T96: 5 | U96: shape | V96: triangle | W96: 4 | X96: yellow | Y96: 1749 | Z96: 1 | AA96: 2 | AB96: 0 | AC96: 0 | AD96: 0
B97: 36 | C97: 4 | D97: 4 | E97: 6 | F97: shape | G97: star | H97: 1 | I97: yellow | J97: 1050 | K97: 1 | L97: 4 | M97: 0 | N97: 0 | O97: 0 | Q97: 36 | R97: 4 | S97: 4 | T97: 6 | U97: shape | V97: star | W97: 1 | X97: yellow | Y97: 1572 | Z97: 1 | AA97: 4 | AB97: 0 | AC97: 0 | AD97: 0
B98: 63 | C98: 2 | D98: 1 | E98: 7 | F98: shape | G98: triangle | H98: 4 | I98: red | J98: 1044 | K98: 1 | L98: 2 | M98: 0 | N98: 0 | O98: 0 | Q98: 63 | R98: 2 | S98: 1 | T98: 7 | U98: shape | V98: triangle | W98: 4 | X98: red | Y98: 878 | Z98: 2 | AA98: 4 | AB98: 1 | AC98: 0 | AD98: 1
B99: 59 | C99: 2 | D99: 1 | E99: 8 | F99: shape | G99: triangle | H99: 3 | I99: red | J99: 363 | K99: 1 | L99: 2 | M99: 0 | N99: 0 | O99: 0 | Q99: 59 | R99: 2 | S99: 1 | T99: 8 | U99: shape | V99: triangle | W99: 3 | X99: red | Y99: 875 | Z99: 1 | AA99: 2 | AB99: 0 | AC99: 0 | AD99: 0
B100: 20 | C100: 3 | D100: 4 | E100: 9 | F100: shape | G100: cross | H100: 1 | I100: yellow | J100: 1730 | K100: 1 | L100: 3 | M100: 0 | N100: 0 | O100: 0 | Q100: 20 | R100: 3 | S100: 4 | T100: 9 | U100: shape | V100: cross | W100: 1 | X100: yellow | Y100: 909 | Z100: 2 | AA100: 4 | AB100: 1 | AC100: 1 | AD100: 0
B101: 2 | C101: 1 | D101: 2 | E101: 10 | F101: shape | G101: circle | H101: 1 | I101: green | J101: 1304 | K101: 1 | L101: 1 | M101: 0 | N101: 0 | O101: 0 | Q101: 2 | R101: 1 | S101: 2 | T101: 10 | U101: shape | V101: circle | W101: 1 | X101: green | Y101: 1098 | Z101: 1 | AA101: 1 | AB101: 0 | AC101: 0 | AD101: 0
B102: 24 | C102: 2 | D102: 3 | E102: 1 | F102: number | G102: cross | H102: 2 | I102: yellow | J102: 1560 | K102: 2 | L102: 3 | M102: 1 | N102: 1 | O102: 0 | Q102: 24 | R102: 2 | S102: 3 | T102: 1 | U102: number | V102: cross | W102: 2 | X102: yellow | Y102: 809 | Z102: 2 | AA102: 3 | AB102: 1 | AC102: 1 | AD102: 0
B103: 5 | C103: 2 | D103: 1 | E103: 2 | F103: number | G103: circle | H103: 2 | I103: blue | J103: 1229 | K103: 2 | L103: 3 | M103: 1 | N103: 0 | O103: 1 | Q103: 5 | R103: 2 | S103: 1 | T103: 2 | U103: number | V103: circle | W103: 2 | X103: blue | Y103: 834 | Z103: 1 | AA103: 2 | AB103: 0 | AC103: 0 | AD103: 0
B104: 42 | C104: 3 | D104: 4 | E104: 3 | F104: number | G104: star | H104: 3 | I104: green | J104: 2967 | K104: 2 | L104: 4 | M104: 1 | N104: 1 | O104: 0 | Q104: 42 | R104: 3 | S104: 4 | T104: 3 | U104: number | V104: star | W104: 3 | X104: green | Y104: 2415 | Z104: 1 | AA104: 3 | AB104: 0 | AC104: 0 | AD104: 0
B105: 10 | C105: 3 | D105: 1 | E105: 4 | F105: number | G105: circle | H105: 3 | I105: green | J105: 1181 | K105: 1 | L105: 3 | M105: 0 | N105: 0 | O105: 0 | Q105: 10 | R105: 3 | S105: 1 | T105: 4 | U105: number | V105: circle | W105: 3 | X105: green | Y105: 1089 | Z105: 1 | AA105: 3 | AB105: 0 | AC105: 0 | AD105: 0
B106: 29 | C106: 4 | D106: 3 | E106: 5 | F106: number | G106: cross | H106: 4 | I106: blue | J106: 2102 | K106: 2 | L106: 3 | M106: 1 | N106: 1 | O106: 0 | Q106: 29 | R106: 4 | S106: 3 | T106: 5 | U106: number | V106: cross | W106: 4 | X106: blue | Y106: 1030 | Z106: 1 | AA106: 4 | AB106: 0 | AC106: 0 | AD106: 0
B107: 47 | C107: 4 | D107: 4 | E107: 6 | F107: number | G107: star | H107: 4 | I107: red | J107: 1176 | K107: 1 | L107: 4 | M107: 0 | N107: 0 | O107: 0 | Q107: 47 | R107: 4 | S107: 4 | T107: 6 | U107: number | V107: star | W107: 4 | X107: red | Y107: 779 | Z107: 1 | AA107: 4 | AB107: 0 | AC107: 0 | AD107: 0
B108: 31 | C108: 4 | D108: 3 | E108: 7 | F108: number | G108: cross | H108: 4 | I108: red | J108: 1101 | K108: 1 | L108: 4 | M108: 0 | N108: 0 | O108: 0 | Q108: 31 | R108: 4 | S108: 3 | T108: 7 | U108: number | V108: cross | W108: 4 | X108: red | Y108: 779 | Z108: 1 | AA108: 4 | AB108: 0 | AC108: 0 | AD108: 0
B109: 38 | C109: 2 | D109: 4 | E109: 8 | F109: number | G109: star | H109: 2 | I109: green | J109: 972 | K109: 1 | L109: 2 | M109: 0 | N109: 0 | O109: 0 | Q109: 38 | R109: 2 | S109: 4 | T109: 8 | U109: number | V109: star | W109: 2 | X109: green | Y109: 824 | Z109: 1 | AA109: 2 | AB109: 0 | AC109: 0 | AD109: 0
B110: 21 | C110: 2 | D110: 3 | E110: 9 | F110: number | G110: cross | H110: 2 | I110: blue | J110: 800 | K110: 1 | L110: 2 | M110: 0 | N110: 0 | O110: 0 | Q110: 21 | R110: 2 | S110: 3 | T110: 9 | U110: number | V110: cross | W110: 2 | X110: blue | Y110: 660 | Z110: 1 | AA110: 2 | AB110: 0 | AC110: 0 | AD110: 0
B111: 6 | C111: 2 | D111: 1 | E111: 10 | F111: number | G111: circle | H111: 2 | I111: green | J111: 947 | K111: 1 | L111: 2 | M111: 0 | N111: 0 | O111: 0 | Q111: 6 | R111: 2 | S111: 1 | T111: 10 | U111: number | V111: circle | W111: 2 | X111: green | Y111: 752 | Z111: 1 | AA111: 2 | AB111: 0 | AC111: 0 | AD111: 0
B112: 12 | C112: 4 | D112: 3 | E112: 1 | F112: color | G112: circle | H112: 3 | I112: yellow | J112: 999 | K112: 2 | L112: 3 | M112: 1 | N112: 1 | O112: 0 | Q112: 12 | R112: 4 | S112: 3 | T112: 1 | U112: color | V112: circle | W112: 3 | X112: yellow | Y112: 1217 | Z112: 2 | AA112: 3 | AB112: 1 | AC112: 1 | AD112: 0
B113: 61 | C113: 3 | D113: 4 | E113: 2 | F113: color | G113: triangle | H113: 4 | I113: blue | J113: 1370 | K113: 1 | L113: 3 | M113: 0 | N113: 0 | O113: 0 | Q113: 61 | R113: 3 | S113: 4 | T113: 2 | U113: color | V113: triangle | W113: 4 | X113: blue | Y113: 569 | Z113: 1 | AA113: 3 | AB113: 0 | AC113: 0 | AD113: 0
B114: 55 | C114: 1 | D114: 2 | E114: 3 | F114: color | G114: triangle | H114: 2 | I114: red | J114: 1021 | K114: 1 | L114: 1 | M114: 0 | N114: 0 | O114: 0 | Q114: 55 | R114: 1 | S114: 2 | T114: 3 | U114: color | V114: triangle | W114: 2 | X114: red | Y114: 2759 | Z114: 1 | AA114: 1 | AB114: 0 | AC114: 0 | AD114: 0
B115: 41 | C115: 3 | D115: 3 | E115: 4 | F115: color | G115: star | H115: 3 | I115: blue | J115: 1035 | K115: 1 | L115: 3 | M115: 0 | N115: 0 | O115: 0 | Q115: 41 | R115: 3 | S115: 3 | T115: 4 | U115: color | V115: star | W115: 3 | X115: blue | Y115: 2993 | Z115: 1 | AA115: 3 | AB115: 0 | AC115: 0 | AD115: 0
B116: 44 | C116: 4 | D116: 3 | E116: 5 | F116: color | G116: star | H116: 3 | I116: yellow | J116: 1371 | K116: 1 | L116: 4 | M116: 0 | N116: 0 | O116: 0 | Q116: 44 | R116: 4 | S116: 3 | T116: 5 | U116: color | V116: star | W116: 3 | X116: yellow | Y116: 2631 | Z116: 1 | AA116: 4 | AB116: 0 | AC116: 0 | AD116: 0
B117: 4 | C117: 4 | D117: 1 | E117: 6 | F117: color | G117: circle | H117: 1 | I117: yellow | J117: 2636 | K117: 1 | L117: 4 | M117: 0 | N117: 0 | O117: 0 | Q117: 4 | R117: 4 | S117: 1 | T117: 6 | U117: color | V117: circle | W117: 1 | X117: yellow | Y117: 1437 | Z117: 1 | AA117: 4 | AB117: 0 | AC117: 0 | AD117: 0
B118: 60 | C118: 4 | D118: 3 | E118: 7 | F118: color | G118: triangle | H118: 3 | I118: yellow | J118: 1388 | K118: 1 | L118: 4 | M118: 0 | N118: 0 | O118: 0 | Q118: 60 | R118: 4 | S118: 3 | T118: 7 | U118: color | V118: triangle | W118: 3 | X118: yellow | Y118: 1310 | Z118: 1 | AA118: 4 | AB118: 0 | AC118: 0 | AD118: 0
B119: 43 | C119: 1 | D119: 3 | E119: 8 | F119: color | G119: star | H119: 3 | I119: red | J119: 2344 | K119: 1 | L119: 1 | M119: 0 | N119: 0 | O119: 0 | Q119: 43 | R119: 1 | S119: 3 | T119: 8 | U119: color | V119: star | W119: 3 | X119: red | Y119: 762 | Z119: 1 | AA119: 1 | AB119: 0 | AC119: 0 | AD119: 0
B120: 8 | C120: 4 | D120: 2 | E120: 9 | F120: color | G120: circle | H120: 2 | I120: yellow | J120: 1441 | K120: 1 | L120: 4 | M120: 0 | N120: 0 | O120: 0 | Q120: 8 | R120: 4 | S120: 2 | T120: 9 | U120: color | V120: circle | W120: 2 | X120: yellow | Y120: 2273 | Z120: 1 | AA120: 4 | AB120: 0 | AC120: 0 | AD120: 0
B121: 18 | C121: 2 | D121: 1 | E121: 10 | F121: color | G121: cross | H121: 1 | I121: green | J121: 1182 | K121: 1 | L121: 2 | M121: 0 | N121: 0 | O121: 0 | Q121: 18 | R121: 2 | S121: 1 | T121: 10 | U121: color | V121: cross | W121: 1 | X121: green | Y121: 1515 | Z121: 1 | AA121: 2 | AB121: 0 | AC121: 0 | AD121: 0
B122: 40 | C122: 4 | D122: 0 | E122: 1 | F122: shape | G122: star | H122: 2 | I122: yellow | J122: 1014 | K122: 1 | L122: 4 | M122: 0 | N122: 0 | O122: 0 | Q122: 40 | R122: 4 | S122: 0 | T122: 1 | U122: shape | V122: star | W122: 2 | X122: yellow | Y122: 1688 | Z122: 1 | AA122: 4 | AB122: 0 | AC122: 0 | AD122: 0
B123: 35 | C123: 4 | D123: 0 | E123: 2 | F123: shape | G123: star | H123: 1 | I123: red | J123: 986 | K123: 2 | L123: 1 | M123: 1 | N123: 0 | O123: 1 | Q123: 35 | R123: 4 | S123: 0 | T123: 2 | U123: shape | V123: star | W123: 1 | X123: red | Y123: 1017 | Z123: 2 | AA123: 1 | AB123: 1 | AC123: 0 | AD123: 1
B124: 52 | C124: 2 | D124: 0 | E124: 3 | F124: shape | G124: triangle | H124: 1 | I124: yellow | J124: 1521 | K124: 1 | L124: 2 | M124: 0 | N124: 0 | O124: 0 | Q124: 52 | R124: 2 | S124: 0 | T124: 3 | U124: shape | V124: triangle | W124: 1 | X124: yellow | Y124: 747 | Z124: 1 | AA124: 2 | AB124: 0 | AC124: 0 | AD124: 0
B125: 34 | C125: 4 | D125: 0 | E125: 4 | F125: shape | G125: star | H125: 1 | I125: green | J125: 1522 | K125: 1 | L125: 4 | M125: 0 | N125: 0 | O125: 0 | Q125: 34 | R125: 4 | S125: 0 | T125: 4 | U125: shape | V125: star | W125: 1 | X125: green | Y125: 1216 | Z125: 1 | AA125: 4 | AB125: 0 | AC125: 0 | AD125: 0
B126: 33 | C126: 4 | D126: 0 | E126: 5 | F126: shape | G126: star | H126: 1 | I126: blue | J126: 1130 | K126: 1 | L126: 4 | M126: 0 | N126: 0 | O126: 0 | Q126: 33 | R126: 4 | S126: 0 | T126: 5 | U126: shape | V126: star | W126: 1 | X126: blue | Y126: 2100 | Z126: 1 | AA126: 4 | AB126: 0 | AC126: 0 | AD126: 0
B127: 1 | C127: 1 | D127: 0 | E127: 6 | F127: shape | G127: circle | H127: 1 | I127: blue | J127: 1694 | K127: 1 | L127: 1 | M127: 0 | N127: 0 | O127: 0 | Q127: 1 | R127: 1 | S127: 0 | T127: 6 | U127: shape | V127: circle | W127: 1 | X127: blue | Y127: 1735 | Z127: 1 | AA127: 1 | AB127: 0 | AC127: 0 | AD127: 0
B128: 39 | C128: 4 | D128: 0 | E128: 7 | F128: shape | G128: star | H128: 2 | I128: red | J128: 1204 | K128: 1 | L128: 4 | M128: 0 | N128: 0 | O128: 0 | Q128: 39 | R128: 4 | S128: 0 | T128: 7 | U128: shape | V128: star | W128: 2 | X128: red | Y128: 1941 | Z128: 1 | AA128: 4 | AB128: 0 | AC128: 0 | AD128: 0
B129: 7 | C129: 1 | D129: 0 | E129: 8 | F129: shape | G129: circle | H129: 2 | I129: red | J129: 1205 | K129: 1 | L129: 1 | M129: 0 | N129: 0 | O129: 0 | Q129: 7 | R129: 1 | S129: 0 | T129: 8 | U129: shape | V129: circle | W129: 2 | X129: red | Y129: 1389 | Z129: 2 | AA129: 2 | AB129: 1 | AC129: 0 | AD129: 1
B130: 56 | C130: 2 | D130: 0 | E130: 9 | F130: shape | G130: triangle | H130: 2 | I130: yellow | J130: 1226 | K130: 1 | L130: 2 | M130: 0 | N130: 0 | O130: 0 | Q130: 56 | R130: 2 | S130: 0 | T130: 9 | U130: shape | V130: triangle | W130: 2 | X130: yellow | Y130: 981 | Z130: 1 | AA130: 2 | AB130: 0 | AC130: 0 | AD130: 0
B131: 14 | C131: 1 | D131: 0 | E131: 10 | F131: shape | G131: circle | H131: 4 | I131: green | J131: 2113 | K131: 1 | L131: 1 | M131: 0 | N131: 0 | O131: 0 | Q131: 14 | R131: 1 | S131: 0 | T131: 10 | U131: shape | V131: circle | W131: 4 | X131: green | Y131: 1216 | Z131: 2 | AA131: 4 | AB131: 1 | AC131: 0 | AD131: 1
B132: 62 | C132: 4 | D132: 2 | E132: 1 | F132: number | G132: triangle | H132: 4 | I132: green | J132: 1832 | K132: 2 | L132: 2 | M132: 1 | N132: 1 | O132: 0 | Q132: 62 | R132: 4 | S132: 2 | T132: 1 | U132: number | V132: triangle | W132: 4 | X132: green | Y132: 950 | Z132: 2 | AA132: 2 | AB132: 1 | AC132: 1 | AD132: 0
B133: 58 | C133: 3 | D133: 2 | E133: 2 | F133: number | G133: triangle | H133: 3 | I133: green | J133: 893 | K133: 1 | L133: 3 | M133: 0 | N133: 0 | O133: 0 | Q133: 58 | R133: 3 | S133: 2 | T133: 2 | U133: number | V133: triangle | W133: 3 | X133: green | Y133: 766 | Z133: 1 | AA133: 3 | AB133: 0 | AC133: 0 | AD133: 0
B134: 26 | C134: 3 | D134: 3 | E134: 3 | F134: number | G134: cross | H134: 3 | I134: green | J134: 907 | K134: 1 | L134: 3 | M134: 0 | N134: 0 | O134: 0 | Q134: 26 | R134: 3 | S134: 3 | T134: 3 | U134: number | V134: cross | W134: 3 | X134: green | Y134: 820 | Z134: 1 | AA134: 3 | AB134: 0 | AC134: 0 | AD134: 0
B135: 30 | C135: 4 | D135: 3 | E135: 4 | F135: number | G135: cross | H135: 4 | I135: green | J135: 1061 | K135: 1 | L135: 4 | M135: 0 | N135: 0 | O135: 0 | Q135: 30 | R135: 4 | S135: 3 | T135: 4 | U135: number | V135: cross | W135: 4 | X135: green | Y135: 955 | Z135: 1 | AA135: 4 | AB135: 0 | AC135: 0 | AD135: 0
B136: 50 | C136: 1 | D136: 2 | E136: 5 | F136: number | G136: triangle | H136: 1 | I136: green | J136: 832 | K136: 1 | L136: 1 | M136: 0 | N136: 0 | O136: 0 | Q136: 50 | R136: 1 | S136: 2 | T136: 5 | U136: number | V136: triangle | W136: 1 | X136: green | Y136: 1607 | Z136: 1 | AA136: 1 | AB136: 0 | AC136: 0 | AD136: 0
B137: 17 | C137: 1 | D137: 3 | E137: 6 | F137: number | G137: cross | H137: 1 | I137: blue | J137: 952 | K137: 1 | L137: 1 | M137: 0 | N137: 0 | O137: 0 | Q137: 17 | R137: 1 | S137: 3 | T137: 6 | U137: number | V137: cross | W137: 1 | X137: blue | Y137: 2450 | Z137: 1 | AA137: 1 | AB137: 0 | AC137: 0 | AD137: 0
B138: 11 | C138: 3 | D138: 1 | E138: 7 | F138: number | G138: circle | H138: 3 | I138: red | J138: 1232 | K138: 1 | L138: 3 | M138: 0 | N138: 0 | O138: 0 | Q138: 11 | R138: 3 | S138: 1 | T138: 7 | U138: number | V138: circle | W138: 3 | X138: red | Y138: 984 | Z138: 1 | AA138: 3 | AB138: 0 | AC138: 0 | AD138: 0
B139: 53 | C139: 2 | D139: 2 | E139: 8 | F139: number | G139: triangle | H139: 2 | I139: blue | J139: 1393 | K139: 1 | L139: 2 | M139: 0 | N139: 0 | O139: 0 | Q139: 53 | R139: 2 | S139: 2 | T139: 8 | U139: number | V139: triangle | W139: 2 | X139: blue | Y139: 879 | Z139: 1 | AA139: 2 | AB139: 0 | AC139: 0 | AD139: 0
B140: 16 | C140: 4 | D140: 1 | E140: 9 | F140: number | G140: circle | H140: 4 | I140: yellow | J140: 1364 | K140: 1 | L140: 4 | M140: 0 | N140: 0 | O140: 0 | Q140: 16 | R140: 4 | S140: 1 | T140: 9 | U140: number | V140: circle | W140: 4 | X140: yellow | Y140: 1870 | Z140: 1 | AA140: 4 | AB140: 0 | AC140: 0 | AD140: 0
B141: 37 | C141: 2 | D141: 4 | E141: 10 | F141: number | G141: star | H141: 2 | I141: blue | J141: 2181 | K141: 1 | L141: 2 | M141: 0 | N141: 0 | O141: 0 | Q141: 37 | R141: 2 | S141: 4 | T141: 10 | U141: number | V141: star | W141: 2 | X141: blue | Y141: 1207 | Z141: 1 | AA141: 2 | AB141: 0 | AC141: 0 | AD141: 0
B142: 46 | C142: 2 | D142: 4 | E142: 1 | F142: color | G142: star | H142: 4 | I142: green | J142: 2117 | K142: 2 | L142: 4 | M142: 1 | N142: 1 | O142: 0 | Q142: 46 | R142: 2 | S142: 4 | T142: 1 | U142: color | V142: star | W142: 4 | X142: green | Y142: 1072 | Z142: 2 | AA142: 4 | AB142: 1 | AC142: 1 | AD142: 0
B143: 45 | C143: 3 | D143: 4 | E143: 2 | F143: color | G143: star | H143: 4 | I143: blue | J143: 4389 | K143: 1 | L143: 3 | M143: 0 | N143: 0 | O143: 0 | Q143: 45 | R143: 3 | S143: 4 | T143: 2 | U143: color | V143: star | W143: 4 | X143: blue | Y143: 1465 | Z143: 1 | AA143: 3 | AB143: 0 | AC143: 0 | AD143: 0
B144: 27 | C144: 1 | D144: 3 | E144: 3 | F144: color | G144: cross | H144: 3 | I144: red | J144: 2454 | K144: 1 | L144: 1 | M144: 0 | N144: 0 | O144: 0 | Q144: 27 | R144: 1 | S144: 3 | T144: 3 | U144: color | V144: cross | W144: 3 | X144: red | Y144: 4283 | Z144: 1 | AA144: 1 | AB144: 0 | AC144: 0 | AD144: 0
B145: 15 | C145: 1 | D145: 4 | E145: 4 | F145: color | G145: circle | H145: 4 | I145: red | J145: 1235 | K145: 1 | L145: 1 | M145: 0 | N145: 0 | O145: 0 | Q145: 15 | R145: 1 | S145: 4 | T145: 4 | U145: color | V145: circle | W145: 4 | X145: red | Y145: 820 | Z145: 1 | AA145: 1 | AB145: 0 | AC145: 0 | AD145: 0
B146: 19 | C146: 1 | D146: 1 | E146: 5 | F146: color | G146: cross | H146: 1 | I146: red | J146: 2834 | K146: 1 | L146: 1 | M146: 0 | N146: 0 | O146: 0 | Q146: 19 | R146: 1 | S146: 1 | T146: 5 | U146: color | V146: cross | W146: 1 | X146: red | Y146: 729 | Z146: 1 | AA146: 1 | AB146: 0 | AC146: 0 | AD146: 0
B147: 57 | C147: 3 | D147: 3 | E147: 6 | F147: color | G147: triangle | H147: 3 | I147: blue | J147: 1280 | K147: 1 | L147: 3 | M147: 0 | N147: 0 | O147: 0 | Q147: 57 | R147: 3 | S147: 3 | T147: 6 | U147: color | V147: triangle | W147: 3 | X147: blue | Y147: 1230 | Z147: 1 | AA147: 3 | AB147: 0 | AC147: 0 | AD147: 0
B148: 22 | C148: 2 | D148: 2 | E148: 7 | F148: color | G148: cross | H148: 2 | I148: green | J148: 1306 | K148: 1 | L148: 2 | M148: 0 | N148: 0 | O148: 0 | Q148: 22 | R148: 2 | S148: 2 | T148: 7 | U148: color | V148: cross | W148: 2 | X148: green | Y148: 841 | Z148: 1 | AA148: 2 | AB148: 0 | AC148: 0 | AD148: 0
B149: 49 | C149: 3 | D149: 1 | E149: 8 | F149: color | G149: triangle | H149: 1 | I149: blue | J149: 790 | K149: 2 | L149: 1 | M149: 1 | N149: 1 | O149: 0 | Q149: 49 | R149: 3 | S149: 1 | T149: 8 | U149: color | V149: triangle | W149: 1 | X149: blue | Y149: 2162 | Z149: 1 | AA149: 3 | AB149: 0 | AC149: 0 | AD149: 0
B150: 51 | C150: 1 | D150: 1 | E150: 9 | F150: color | G150: triangle | H150: 1 | I150: red | J150: 899 | K150: 1 | L150: 1 | M150: 0 | N150: 0 | O150: 0 | Q150: 51 | R150: 1 | S150: 1 | T150: 9 | U150: color | V150: triangle | W150: 1 | X150: red | Y150: 1068 | Z150: 1 | AA150: 1 | AB150: 0 | AC150: 0 | AD150: 0
B151: 13 | C151: 3 | D151: 4 | E151: 10 | F151: color | G151: circle | H151: 4 | I151: blue | J151: 2965 | K151: 1 | L151: 3 | M151: 0 | N151: 0 | O151: 0 | Q151: 13 | R151: 3 | S151: 4 | T151: 10 | U151: color | V151: circle | W151: 4 | X151: blue | Y151: 991 | Z151: 1 | AA151: 3 | AB151: 0 | AC151: 0 | AD151: 0
B152: 32 | C152: 3 | D152: 4 | E152: 1 | F152: shape | G152: cross | H152: 4 | I152: yellow | J152: 1117 | K152: 2 | L152: 4 | M152: 1 | N152: 1 | O152: 0 | Q152: 32 | R152: 3 | S152: 4 | T152: 1 | U152: shape | V152: cross | W152: 4 | X152: yellow | Y152: 1686 | Z152: 2 | AA152: 4 | AB152: 1 | AC152: 1 | AD152: 0
B153: 28 | C153: 3 | D153: 4 | E153: 2 | F153: shape | G153: cross | H153: 3 | I153: yellow | J153: 1268 | K153: 2 | L153: 4 | M153: 1 | N153: 1 | O153: 0 | Q153: 28 | R153: 3 | S153: 4 | T153: 2 | U153: shape | V153: cross | W153: 3 | X153: yellow | Y153: 787 | Z153: 1 | AA153: 3 | AB153: 0 | AC153: 0 | AD153: 0
B154: 23 | C154: 3 | D154: 1 | E154: 3 | F154: shape | G154: cross | H154: 2 | I154: red | J154: 1747 | K154: 2 | L154: 1 | M154: 1 | N154: 1 | O154: 0 | Q154: 23 | R154: 3 | S154: 1 | T154: 3 | U154: shape | V154: cross | W154: 2 | X154: red | Y154: 1187 | Z154: 1 | AA154: 3 | AB154: 0 | AC154: 0 | AD154: 0
B155: 9 | C155: 1 | D155: 3 | E155: 4 | F155: shape | G155: circle | H155: 3 | I155: blue | J155: 2942 | K155: 2 | L155: 3 | M155: 1 | N155: 1 | O155: 0 | Q155: 9 | R155: 1 | S155: 3 | T155: 4 | U155: shape | V155: circle | W155: 3 | X155: blue | Y155: 4277 | Z155: 1 | AA155: 1 | AB155: 0 | AC155: 0 | AD155: 0
B156: 64 | C156: 2 | D156: 4 | E156: 5 | F156: shape | G156: triangle | H156: 4 | I156: yellow | J156: 1383 | K156: 2 | L156: 4 | M156: 1 | N156: 1 | O156: 0 | Q156: 64 | R156: 2 | S156: 4 | T156: 5 | U156: shape | V156: triangle | W156: 4 | X156: yellow | Y156: 1432 | Z156: 1 | AA156: 2 | AB156: 0 | AC156: 0 | AD156: 0
B157: 36 | C157: 4 | D157: 4 | E157: 6 | F157: shape | G157: star | H157: 1 | I157: yellow | J157: 1135 | K157: 2 | L157: 1 | M157: 1 | N157: 0 | O157: 1 | Q157: 36 | R157: 4 | S157: 4 | T157: 6 | U157: shape | V157: star | W157: 1 | X157: yellow | Y157: 1287 | Z157: 1 | AA157: 4 | AB157: 0 | AC157: 0 | AD157: 0
B158: 63 | C158: 2 | D158: 1 | E158: 7 | F158: shape | G158: triangle | H158: 4 | I158: red | J158: 1901 | K158: 1 | L158: 2 | M158: 0 | N158: 0 | O158: 0 | Q158: 63 | R158: 2 | S158: 1 | T158: 7 | U158: shape | V158: triangle | W158: 4 | X158: red | Y158: 930 | Z158: 1 | AA158: 2 | AB158: 0 | AC158: 0 | AD158: 0
B159: 59 | C159: 2 | D159: 1 | E159: 8 | F159: shape | G159: triangle | H159: 3 | I159: red | J159: 3526 | K159: 1 | L159: 2 | M159: 0 | N159: 0 | O159: 0 | Q159: 59 | R159: 2 | S159: 1 | T159: 8 | U159: shape | V159: triangle | W159: 3 | X159: red | Y159: 878 | Z159: 1 | AA159: 2 | AB159: 0 | AC159: 0 | AD159: 0
B160: 20 | C160: 3 | D160: 4 | E160: 9 | F160: shape | G160: cross | H160: 1 | I160: yellow | J160: 1529 | K160: 1 | L160: 3 | M160: 0 | N160: 0 | O160: 0 | Q160: 20 | R160: 3 | S160: 4 | T160: 9 | U160: shape | V160: cross | W160: 1 | X160: yellow | Y160: 572 | Z160: 2 | AA160: 2 | AB160: 1 | AC160: 0 | AD160: 1
B161: 2 | C161: 1 | D161: 2 | E161: 10 | F161: shape | G161: circle | H161: 1 | I161: green | J161: 1363 | K161: 1 | L161: 1 | M161: 0 | N161: 0 | O161: 0 | Q161: 2 | R161: 1 | S161: 2 | T161: 10 | U161: shape | V161: circle | W161: 1 | X161: green | Y161: 1200 | Z161: 1 | AA161: 1 | AB161: 0 | AC161: 0 | AD161: 0
B162: 24 | C162: 2 | D162: 3 | E162: 1 | F162: number | G162: cross | H162: 2 | I162: yellow | J162: 1452 | K162: 2 | L162: 3 | M162: 1 | N162: 1 | O162: 0 | Q162: 24 | R162: 2 | S162: 3 | T162: 1 | U162: number | V162: cross | W162: 2 | X162: yellow | Y162: 903 | Z162: 2 | AA162: 3 | AB162: 1 | AC162: 1 | AD162: 0
B163: 5 | C163: 2 | D163: 1 | E163: 2 | F163: number | G163: circle | H163: 2 | I163: blue | J163: 947 | K163: 1 | L163: 2 | M163: 0 | N163: 0 | O163: 0 | Q163: 5 | R163: 2 | S163: 1 | T163: 2 | U163: number | V163: circle | W163: 2 | X163: blue | Y163: 639 | Z163: 1 | AA163: 2 | AB163: 0 | AC163: 0 | AD163: 0
B164: 42 | C164: 3 | D164: 4 | E164: 3 | F164: number | G164: star | H164: 3 | I164: green | J164: 1309 | K164: 1 | L164: 3 | M164: 0 | N164: 0 | O164: 0 | Q164: 42 | R164: 3 | S164: 4 | T164: 3 | U164: number | V164: star | W164: 3 | X164: green | Y164: 989 | Z164: 1 | AA164: 3 | AB164: 0 | AC164: 0 | AD164: 0
B165: 10 | C165: 3 | D165: 1 | E165: 4 | F165: number | G165: circle | H165: 3 | I165: green | J165: 1204 | K165: 1 | L165: 3 | M165: 0 | N165: 0 | O165: 0 | Q165: 10 | R165: 3 | S165: 1 | T165: 4 | U165: number | V165: circle | W165: 3 | X165: green | Y165: 899 | Z165: 1 | AA165: 3 | AB165: 0 | AC165: 0 | AD165: 0
B166: 29 | C166: 4 | D166: 3 | E166: 5 | F166: number | G166: cross | H166: 4 | I166: blue | J166: 1423 | K166: 1 | L166: 4 | M166: 0 | N166: 0 | O166: 0 | Q166: 29 | R166: 4 | S166: 3 | T166: 5 | U166: number | V166: cross | W166: 4 | X166: blue | Y166: 962 | Z166: 2 | AA166: 4 | AB166: 1 | AC166: 0 | AD166: 1
B167: 47 | C167: 4 | D167: 4 | E167: 6 | F167: number | G167: star | H167: 4 | I167: red | J167: 1610 | K167: 1 | L167: 4 | M167: 0 | N167: 0 | O167: 0 | Q167: 47 | R167: 4 | S167: 4 | T167: 6 | U167: number | V167: star | W167: 4 | X167: red | Y167: 1144 | Z167: 1 | AA167: 4 | AB167: 0 | AC167: 0 | AD167: 0
B168: 31 | C168: 4 | D168: 3 | E168: 7 | F168: number | G168: cross | H168: 4 | I168: red | J168: 1085 | K168: 1 | L168: 4 | M168: 0 | N168: 0 | O168: 0 | Q168: 31 | R168: 4 | S168: 3 | T168: 7 | U168: number | V168: cross | W168: 4 | X168: red | Y168: 1080 | Z168: 2 | AA168: 3 | AB168: 1 | AC168: 1 | AD168: 0
B169: 38 | C169: 2 | D169: 4 | E169: 8 | F169: number | G169: star | H169: 2 | I169: green | J169: 1361 | K169: 1 | L169: 2 | M169: 0 | N169: 0 | O169: 0 | Q169: 38 | R169: 2 | S169: 4 | T169: 8 | U169: number | V169: star | W169: 2 | X169: green | Y169: 826 | Z169: 1 | AA169: 2 | AB169: 0 | AC169: 0 | AD169: 0
B170: 21 | C170: 2 | D170: 3 | E170: 9 | F170: number | G170: cross | H170: 2 | I170: blue | J170: 859 | K170: 1 | L170: 2 | M170: 0 | N170: 0 | O170: 0 | Q170: 21 | R170: 2 | S170: 3 | T170: 9 | U170: number | V170: cross | W170: 2 | X170: blue | Y170: 2141 | Z170: 2 | AA170: 3 | AB170: 1 | AC170: 1 | AD170: 0
B171: 6 | C171: 2 | D171: 1 | E171: 10 | F171: number | G171: circle | H171: 2 | I171: green | J171: 859 | K171: 1 | L171: 2 | M171: 0 | N171: 0 | O171: 0 | Q171: 6 | R171: 2 | S171: 1 | T171: 10 | U171: number | V171: circle | W171: 2 | X171: green | Y171: 630 | Z171: 1 | AA171: 2 | AB171: 0 | AC171: 0 | AD171: 0
B172: 12 | C172: 4 | D172: 3 | E172: 1 | F172: color | G172: circle | H172: 3 | I172: yellow | J172: 1113 | K172: 2 | L172: 3 | M172: 1 | N172: 1 | O172: 0 | Q172: 12 | R172: 4 | S172: 3 | T172: 1 | U172: color | V172: circle | W172: 3 | X172: yellow | Y172: 960 | Z172: 2 | AA172: 3 | AB172: 1 | AC172: 1 | AD172: 0
B173: 61 | C173: 3 | D173: 4 | E173: 2 | F173: color | G173: triangle | H173: 4 | I173: blue | J173: 1138 | K173: 2 | L173: 2 | M173: 1 | N173: 0 | O173: 1 | Q173: 61 | R173: 3 | S173: 4 | T173: 2 | U173: color | V173: triangle | W173: 4 | X173: blue | Y173: 900 | Z173: 2 | AA173: 2 | AB173: 1 | AC173: 0 | AD173: 1
B174: 55 | C174: 1 | D174: 2 | E174: 3 | F174: color | G174: triangle | H174: 2 | I174: red | J174: 912 | K174: 1 | L174: 1 | M174: 0 | N174: 0 | O174: 0 | Q174: 55 | R174: 1 | S174: 2 | T174: 3 | U174: color | V174: triangle | W174: 2 | X174: red | Y174: 926 | Z174: 2 | AA174: 2 | AB174: 1 | AC174: 1 | AD174: 0
B175: 41 | C175: 3 | D175: 3 | E175: 4 | F175: color | G175: star | H175: 3 | I175: blue | J175: 1333 | K175: 1 | L175: 3 | M175: 0 | N175: 0 | O175: 0 | Q175: 41 | R175: 3 | S175: 3 | T175: 4 | U175: color | V175: star | W175: 3 | X175: blue | Y175: 841 | Z175: 1 | AA175: 3 | AB175: 0 | AC175: 0 | AD175: 0
B176: 44 | C176: 4 | D176: 3 | E176: 5 | F176: color | G176: star | H176: 3 | I176: yellow | J176: 913 | K176: 1 | L176: 4 | M176: 0 | N176: 0 | O176: 0 | Q176: 44 | R176: 4 | S176: 3 | T176: 5 | U176: color | V176: star | W176: 3 | X176: yellow | Y176: 1152 | Z176: 2 | AA176: 3 | AB176: 1 | AC176: 1 | AD176: 0
B177: 4 | C177: 4 | D177: 1 | E177: 6 | F177: color | G177: circle | H177: 1 | I177: yellow | J177: 815 | K177: 2 | L177: 1 | M177: 1 | N177: 1 | O177: 0 | Q177: 4 | R177: 4 | S177: 1 | T177: 6 | U177: color | V177: circle | W177: 1 | X177: yellow | Y177: 759 | Z177: 2 | AA177: 1 | AB177: 1 | AC177: 1 | AD177: 0
B178: 60 | C178: 4 | D178: 3 | E178: 7 | F178: color | G178: triangle | H178: 3 | I178: yellow | J178: 982 | K178: 1 | L178: 4 | M178: 0 | N178: 0 | O178: 0 | Q178: 60 | R178: 4 | S178: 3 | T178: 7 | U178: color | V178: triangle | W178: 3 | X178: yellow | Y178: 937 | Z178: 1 | AA178: 4 | AB178: 0 | AC178: 0 | AD178: 0
B179: 43 | C179: 1 | D179: 3 | E179: 8 | F179: color | G179: star | H179: 3 | I179: red | J179: 1162 | K179: 1 | L179: 1 | M179: 0 | N179: 0 | O179: 0 | Q179: 43 | R179: 1 | S179: 3 | T179: 8 | U179: color | V179: star | W179: 3 | X179: red | Y179: 916 | Z179: 1 | AA179: 1 | AB179: 0 | AC179: 0 | AD179: 0
B180: 8 | C180: 4 | D180: 2 | E180: 9 | F180: color | G180: circle | H180: 2 | I180: yellow | J180: 922 | K180: 2 | L180: 2 | M180: 1 | N180: 1 | O180: 0 | Q180: 8 | R180: 4 | S180: 2 | T180: 9 | U180: color | V180: circle | W180: 2 | X180: yellow | Y180: 2261 | Z180: 1 | AA180: 4 | AB180: 0 | AC180: 0 | AD180: 0
B181: 18 | C181: 2 | D181: 1 | E181: 10 | F181: color | G181: cross | H181: 1 | I181: green | J181: 842 | K181: 1 | L181: 2 | M181: 0 | N181: 0 | O181: 0 | Q181: 18 | R181: 2 | S181: 1 | T181: 10 | U181: color | V181: cross | W181: 1 | X181: green | Y181: 1345 | Z181: 1 | AA181: 2 | AB181: 0 | AC181: 0 | AD181: 0
B182: 40 | C182: 4 | D182: 0 | E182: 1 | F182: shape | G182: star | H182: 2 | I182: yellow | J182: 1084 | K182: 1 | L182: 4 | M182: 0 | N182: 0 | O182: 0 | Q182: 40 | R182: 4 | S182: 0 | T182: 1 | U182: shape | V182: star | W182: 2 | X182: yellow | Y182: 1507 | Z182: 1 | AA182: 4 | AB182: 0 | AC182: 0 | AD182: 0
B183: 35 | C183: 4 | D183: 0 | E183: 2 | F183: shape | G183: star | H183: 1 | I183: red | J183: 959 | K183: 2 | L183: 1 | M183: 1 | N183: 0 | O183: 1 | Q183: 35 | R183: 4 | S183: 0 | T183: 2 | U183: shape | V183: star | W183: 1 | X183: red | Y183: 1466 | Z183: 1 | AA183: 4 | AB183: 0 | AC183: 0 | AD183: 0
B184: 52 | C184: 2 | D184: 0 | E184: 3 | F184: shape | G184: triangle | H184: 1 | I184: yellow | J184: 1618 | K184: 1 | L184: 2 | M184: 0 | N184: 0 | O184: 0 | Q184: 52 | R184: 2 | S184: 0 | T184: 3 | U184: shape | V184: triangle | W184: 1 | X184: yellow | Y184: 1808 | Z184: 1 | AA184: 2 | AB184: 0 | AC184: 0 | AD184: 0
B185: 34 | C185: 4 | D185: 0 | E185: 4 | F185: shape | G185: star | H185: 1 | I185: green | J185: 1691 | K185: 1 | L185: 4 | M185: 0 | N185: 0 | O185: 0 | Q185: 34 | R185: 4 | S185: 0 | T185: 4 | U185: shape | V185: star | W185: 1 | X185: green | Y185: 1122 | Z185: 1 | AA185: 4 | AB185: 0 | AC185: 0 | AD185: 0
B186: 33 | C186: 4 | D186: 0 | E186: 5 | F186: shape | G186: star | H186: 1 | I186: blue | J186: 1267 | K186: 1 | L186: 4 | M186: 0 | N186: 0 | O186: 0 | Q186: 33 | R186: 4 | S186: 0 | T186: 5 | U186: shape | V186: star | W186: 1 | X186: blue | Y186: 1602 | Z186: 1 | AA186: 4 | AB186: 0 | AC186: 0 | AD186: 0
B187: 1 | C187: 1 | D187: 0 | E187: 6 | F187: shape | G187: circle | H187: 1 | I187: blue | J187: 1201 | K187: 1 | L187: 1 | M187: 0 | N187: 0 | O187: 0 | Q187: 1 | R187: 1 | S187: 0 | T187: 6 | U187: shape | V187: circle | W187: 1 | X187: blue | Y187: 945 | Z187: 1 | AA187: 1 | AB187: 0 | AC187: 0 | AD187: 0
B188: 39 | C188: 4 | D188: 0 | E188: 7 | F188: shape | G188: star | H188: 2 | I188: red | J188: 1237 | K188: 1 | L188: 4 | M188: 0 | N188: 0 | O188: 0 | Q188: 39 | R188: 4 | S188: 0 | T188: 7 | U188: shape | V188: star | W188: 2 | X188: red | Y188: 1393 | Z188: 1 | AA188: 4 | AB188: 0 | AC188: 0 | AD188: 0
B189: 7 | C189: 1 | D189: 0 | E189: 8 | F189: shape | G189: circle | H189: 2 | I189: red | J189: 944 | K189: 1 | L189: 1 | M189: 0 | N189: 0 | O189: 0 | Q189: 7 | R189: 1 | S189: 0 | T189: 8 | U189: shape | V189: circle | W189: 2 | X189: red | Y189: 1139 | Z189: 1 | AA189: 1 | AB189: 0 | AC189: 0 | AD189: 0
B190: 56 | C190: 2 | D190: 0 | E190: 9 | F190: shape | G190: triangle | H190: 2 | I190: yellow | J190: 1199 | K190: 1 | L190: 2 | M190: 0 | N190: 0 | O190: 0 | Q190: 56 | R190: 2 | S190: 0 | T190: 9 | U190: shape | V190: triangle | W190: 2 | X190: yellow | Y190: 1029 | Z190: 1 | AA190: 2 | AB190: 0 | AC190: 0 | AD190: 0
B191: 14 | C191: 1 | D191: 0 | E191: 10 | F191: shape | G191: circle | H191: 4 | I191: green | J191: 1857 | K191: 1 | L191: 1 | M191: 0 | N191: 0 | O191: 0 | Q191: 14 | R191: 1 | S191: 0 | T191: 10 | U191: shape | V191: circle | W191: 4 | X191: green | Y191: 825 | Z191: 2 | AA191: 4 | AB191: 1 | AC191: 0 | AD191: 1
B192: 62 | C192: 4 | D192: 2 | E192: 1 | F192: number | G192: triangle | H192: 4 | I192: green | J192: 1402 | K192: 2 | L192: 2 | M192: 1 | N192: 1 | O192: 0 | Q192: 62 | R192: 4 | S192: 2 | T192: 1 | U192: number | V192: triangle | W192: 4 | X192: green | Y192: 886 | Z192: 2 | AA192: 2 | AB192: 1 | AC192: 1 | AD192: 0
B193: 58 | C193: 3 | D193: 2 | E193: 2 | F193: number | G193: triangle | H193: 3 | I193: green | J193: 1014 | K193: 1 | L193: 3 | M193: 0 | N193: 0 | O193: 0 | Q193: 58 | R193: 3 | S193: 2 | T193: 2 | U193: number | V193: triangle | W193: 3 | X193: green | Y193: 1854 | Z193: 1 | AA193: 3 | AB193: 0 | AC193: 0 | AD193: 0
B194: 26 | C194: 3 | D194: 3 | E194: 3 | F194: number | G194: cross | H194: 3 | I194: green | J194: 1573 | K194: 1 | L194: 3 | M194: 0 | N194: 0 | O194: 0 | Q194: 26 | R194: 3 | S194: 3 | T194: 3 | U194: number | V194: cross | W194: 3 | X194: green | Y194: 1539 | Z194: 1 | AA194: 3 | AB194: 0 | AC194: 0 | AD194: 0
B195: 30 | C195: 4 | D195: 3 | E195: 4 | F195: number | G195: cross | H195: 4 | I195: green | J195: 1401 | K195: 1 | L195: 4 | M195: 0 | N195: 0 | O195: 0 | Q195: 30 | R195: 4 | S195: 3 | T195: 4 | U195: number | V195: cross | W195: 4 | X195: green | Y195: 3367 | Z195: 1 | AA195: 4 | AB195: 0 | AC195: 0 | AD195: 0
B196: 50 | C196: 1 | D196: 2 | E196: 5 | F196: number | G196: triangle | H196: 1 | I196: green | J196: 1049 | K196: 2 | L196: 2 | M196: 1 | N196: 1 | O196: 0 | Q196: 50 | R196: 1 | S196: 2 | T196: 5 | U196: number | V196: triangle | W196: 1 | X196: green | Y196: 2981 | Z196: 1 | AA196: 1 | AB196: 0 | AC196: 0 | AD196: 0
B197: 17 | C197: 1 | D197: 3 | E197: 6 | F197: number | G197: cross | H197: 1 | I197: blue | J197: 841 | K197: 1 | L197: 1 | M197: 0 | N197: 0 | O197: 0 | Q197: 17 | R197: 1 | S197: 3 | T197: 6 | U197: number | V197: cross | W197: 1 | X197: blue | Y197: 1359 | Z197: 1 | AA197: 1 | AB197: 0 | AC197: 0 | AD197: 0
B198: 11 | C198: 3 | D198: 1 | E198: 7 | F198: number | G198: circle | H198: 3 | I198: red | J198: 1081 | K198: 1 | L198: 3 | M198: 0 | N198: 0 | O198: 0 | Q198: 11 | R198: 3 | S198: 1 | T198: 7 | U198: number | V198: circle | W198: 3 | X198: red | Y198: 4888 | Z198: 1 | AA198: 3 | AB198: 0 | AC198: 0 | AD198: 0
B199: 53 | C199: 2 | D199: 2 | E199: 8 | F199: number | G199: triangle | H199: 2 | I199: blue | J199: 877 | K199: 1 | L199: 2 | M199: 0 | N199: 0 | O199: 0 | Q199: 53 | R199: 2 | S199: 2 | T199: 8 | U199: number | V199: triangle | W199: 2 | X199: blue | Y199: 725 | Z199: 1 | AA199: 2 | AB199: 0 | AC199: 0 | AD199: 0
B200: 16 | C200: 4 | D200: 1 | E200: 9 | F200: number | G200: circle | H200: 4 | I200: yellow | J200: 1018 | K200: 1 | L200: 4 | M200: 0 | N200: 0 | O200: 0 | Q200: 16 | R200: 4 | S200: 1 | T200: 9 | U200: number | V200: circle | W200: 4 | X200: yellow | Y200: 920 | Z200: 1 | AA200: 4 | AB200: 0 | AC200: 0 | AD200: 0
... 630 more rows

Sheet Stress
A1: Alcohol Group | B1: Participant | C1: Before Stress | D1: During Stress | E1: After Stress | F1: Diff During | G1: Diff After
B2: B1 | C2: 7 | D2: 8 | E2: 9 | F2: =D2-C2 -> 1 | G2: =E2-C2 -> 2
B3: B2 | C3: 8 | D3: 10 | E3: 9 | F3: =D3-C3 -> 2 | G3: =E3-C3 -> 1
B4: B3 | C4: 1 | D4: 2 | E4: 2 | F4: 1 | G4: 1
B5: B8 | C5: 2 | D5: 6 | E5: 8 | F5: 4 | G5: 6
A6: Non-Alcohol Group | B6: A8 | C6: 7 | D6: 5 | E6: 5 | F6: -2 | G6: -2
B7: A11 | C7: 7 | D7: 6 | E7: 6 | F7: -1 | G7: -1
B8: A3 | C8: 7 | D8: 10 | E8: 10 | F8: 3 | G8: 3
B9: A4 | C9: 2 | D9: 9 | E9: 10 | F9: 7 | G9: 8
C10: Before Stress | D10: During Stress | E10: After Stress | F10: Diff During | G10: Diff After
B11: Alcohol | C11: =AVERAGE(C2:C5) -> 4.5 | D11: =AVERAGE(D2:D5) -> 6.5 | E11: =AVERAGE(E2:E5) -> 7 | F11: =AVERAGE(F2:F5) -> 2 | G11: =AVERAGE(G2:G5) -> 2.5
B12: Non-Alcohol | C12: =AVERAGE(C6:C9) -> 5.75 | D12: =AVERAGE(D6:D9) -> 7.5 | E12: =AVERAGE(E6:E9) -> 7.75 | F12: =AVERAGE(F6:F9) -> 1.75 | G12: =AVERAGE(G6:G9) -> 2
E13: 6
F16: During P-Value | G16: After P-Value
F17: =_xlfn.T.TEST(F2:F5,F6:F9,1,3) -> 0.4572211739 | G17: =_xlfn.T.TEST(G2:G5,G6:G9,2,3) -> 0.8539276728
